bitfinex/quotes_ETHUSD_20251004
["timestamp","ask_amount","ask_price","bid_price","bid_amount"]
[1759554779424,0.002,4502.2,4502.1,23.30463864]
[1759554779828,0.002,4502.2,4502.1,4.29955264]
[1759554780030,0.002,4502.2,4502.1,4.32176449]
[1759554780231,0.002,4502.2,4502.1,23.32685049]
[1759554780411,0.002,4502.2,4502.1,23.30463864]
[1759554780908,0.002,4502.2,4502.1,23.00623264]
[1759554781308,0.002,4502.2,4502.1,21.48671764]
[1759554781722,0.002,4502.2,4502.1,23.48114964]
[1759554781925,0.002,4502.2,4502.1,20.11664964]
[1759554782125,0.002,4502.2,4502.1,23.84064964]
[1759554782930,0.002,4502.2,4502.1,15.40411264]
[1759554783653,0.002,4502.2,4502.1,20.22211264]
[1759554783849,0.002,4502.2,4502.1,12.66750164]
[1759554784037,0.002,4502.2,4502.1,5.440013]
[1759554784216,0.002,4502.2,4502.1,7.950013]
[1759554784411,0.002,4502.2,4502.1,0.1122]
[1759554784646,0.002,4502.2,4502.1,2.6222]
[1759554785175,0.002,4502.2,4502.1,5.0222]
[1759554786287,0.002,4502.2,4502.1,6.38611331]
[1759554786944,0.002,4502.2,4502.1,2.401]
[1759554787140,0.002,4502.2,4502.1,6.988624]
[1759554787344,0.002,4502.2,4502.1,7.421624]
[1759554787963,0.002,4502.2,4502.1,4.911]
[1759554788564,0.002,4502.2,4502.1,7.304367]
[1759554789356,0.002,4502.2,4502.1,7.737367]
[1759554789556,0.002,4502.2,4502.1,7.405671]
[1759554789781,0.002,4502.2,4502.1,5.344]
[1759554790480,0.002,4502.2,4502.1,7.9639274]
[1759554791081,0.002,4502.2,4502.1,5.6177074]
[1759554791986,0.002,4502.2,4502.1,5.1847074]
[1759554792291,0.002,4502.2,4502.1,2.6747074]
[1759554792590,0.3358,4502.2,4502.1,2.511]
[1759554792792,0.25788783,4502.2,4502.1,2.512]
[1759554792991,0.002,4502.2,4502.1,2.512]
[1759554794693,0.002,4502.2,4502.1,0.001]
[1759554794861,2.22313633,4502.2,4502.1,2.512]
[1759554796170,0.48888513,4502.2,4502.1,2.512]
[1759554796368,0.002,4502.2,4502.1,2.512]
[1759554798406,2.22313633,4502.2,4502.1,0.001]
[1759554798725,0.002,4502.2,4502.1,2.511]
[1759554798886,2.22313633,4502.2,4502.1,0.001]
[1759554799072,2.55693633,4502.2,4502.1,0.001]
[1759554799275,3.15725621,4502.2,4502.1,0.001]
[1759554799672,3.15725621,4502.2,4502.1,2.357]
[1759554800112,3.15725621,4502.2,4502.1,2.511]
[1759554800525,3.15725621,4502.2,4502.1,0.001]
[1759554800706,3.15725621,4502.2,4502.1,2.511]
[1759554801989,3.15725621,4502.2,4502.1,0.001]
[1759554802187,3.15725621,4502.2,4502.1,2.511]
[1759554803245,2.82345621,4502.2,4502.1,2.511]
[1759554805141,2.82345621,4502.2,4502.1,0.001]
[1759554805355,3.15725621,4502.2,4502.1,2.511]
[1759554805651,3.15725621,4502.2,4502.1,1.984]
[1759554806316,2.82345621,4502.2,4502.1,1.984]
[1759554813254,2.82345621,4502.2,4502.1,0.001]
[1759554813551,2.82345621,4502.2,4502.1,0.74]
[1759554814272,2.82345621,4502.2,4502.1,0.001]
[1759554814475,2.82345621,4502.2,4502.1,2.511]
[1759554814476,3.15725621,4502.2,4502.1,2.511]
[1759554814904,3.15725621,4502.2,4502.1,0.001]
[1759554814905,2.82345621,4502.2,4502.1,0.001]
[1759554815189,2.82345621,4502.2,4502.1,2.511]
[1759554819855,2.82345621,4502.2,4502.1,0.001]
[1759554820057,2.82345621,4502.2,4502.1,2.511]
[1759554823680,2.33433633,4502.2,4502.1,2.511]
[1759554823885,0.002,4502.2,4502.1,2.9762]
[1759554824220,0.002,4502.2,4502.1,3.51609331]
[1759554824386,0.002,4502.5,4502.1,15.29066931]
[1759554824718,0.002,4502.5,4502.2,2.01647829]
[1759554824879,0.002,4502.5,4502.2,0.48741136]
[1759554825211,0.002,4502.5,4502.3,0.7389074]
[1759554825509,0.002,4502.5,4502.4,0.02221037]
[1759554825682,0.002,4502.5,4502.4,0.48741037]
[1759554826206,0.002,4502.5,4502.4,22.24111668]
[1759554826407,0.002,4502.5,4502.4,24.68779829]
[1759554828823,0.002,4502.5,4502.4,16.66431498]
[1759554829113,0.002,4502.5,4502.4,17.08619298]
[1759554829284,0.002,4502.5,4502.4,18.28169398]
[1759554829685,0.002,4502.5,4502.4,16.78377398]
[1759554830025,0.002,4502.5,4502.4,13.22990198]
[1759554830209,0.002,4502.5,4502.4,15.73990198]
[1759554831041,0.002,4502.5,4502.4,7.65281898]
[1759554831237,0.002,4502.5,4502.4,16.407634]
[1759554831990,0.002,4502.5,4502.4,16.644498]
[1759554832479,0.002,4502.5,4502.4,11.644498]
[1759554833088,0.002,4502.5,4502.4,2.8652]
[1759554833288,0.002,4502.5,4502.4,5.3742]
[1759554833493,0.002,4502.5,4502.4,6.36432]
[1759554833688,0.002,4502.5,4502.4,8.83509]
[1759554834017,0.002,4502.5,4502.4,6.47552]
[1759554834217,0.002,4502.5,4502.4,10.938882]
[1759554834397,0.002,4502.5,4502.4,9.809882]
[1759554835122,0.002,4502.5,4502.4,12.266656]
[1759554835550,0.002,4502.5,4502.4,12.80654931]
[1759554836303,0.002,4502.5,4502.4,22.55260931]
[1759554837341,0.002,4502.5,4502.4,25.62395131]
[1759554838329,0.002,4502.5,4502.4,26.02049931]
[1759554838737,0.002,4502.5,4502.4,20.36556131]
[1759554839335,0.002,4502.5,4502.4,26.02049931]
[1759554840552,0.002,4502.5,4502.4,26.65409931]
[1759554840720,0.002,4502.5,4502.4,28.87513697]
[1759554841638,0.002,4502.5,4502.4,29.32742826]
[1759554842442,0.002,4502.5,4502.4,29.41626532]
[1759554842878,0.002,4502.5,4502.4,27.19522766]
[1759554843172,0.002,4502.5,4502.4,29.50122766]
[1759554843348,0.002,4502.5,4502.4,31.72226532]
[1759554843513,0.002,4502.5,4502.4,31.63342826]
[1759554843859,0.002,4502.5,4502.4,29.4123906]
[1759554844543,0.002,4502.5,4502.4,31.63342826]
[1759554848566,0.002,4502.5,4502.4,12.62834226]
[1759554848934,0.002,4502.5,4502.4,31.63342826]
[1759554849439,0.002,4502.5,4502.4,31.72226414]
[1759554851569,0.002,4502.5,4502.4,12.71717814]
[1759554851933,0.002,4502.5,4502.4,31.72226414]
[1759554855690,0.002,4502.5,4502.4,12.71717814]
[1759554855900,0.002,4502.5,4502.4,31.72226414]
[1759554856666,0.002,4502.5,4502.4,12.71717814]
[1759554856868,0.002,4502.5,4502.4,31.72226414]
[1759554857695,0.002,4502.5,4502.4,12.71717814]
[1759554857995,0.002,4502.5,4502.4,31.72226414]
[1759554858163,0.002,4502.5,4502.4,33.30457607]
[1759554858754,0.002,4502.5,4502.4,28.02437607]
[1759554858946,0.002,4502.5,4502.4,33.26597607]
[1759554859151,0.002,4502.5,4502.4,31.68366414]
[1759554859378,0.002,4502.5,4502.4,29.18891908]
[1759554859565,0.002,4502.5,4502.4,30.71617083]
[1759554859759,0.002,4502.5,4502.4,28.40629729]
[1759554860499,0.002,4502.5,4502.4,30.62733495]
[1759554860698,0.002,4502.5,4502.4,28.40629729]
[1759554860923,0.002,4502.5,4502.4,30.62733495]
[1759554861512,0.002,4502.5,4502.4,28.40629729]
[1759554861817,0.002,4502.5,4502.4,30.62733495]
[1759554862190,0.002,4502.5,4502.4,25.81333495]
[1759554862521,0.002,4502.5,4502.4,30.89252086]
[1759554863320,0.002,4502.5,4502.4,31.07753495]
[1759554863527,0.002,4502.5,4502.4,28.40529729]
[1759554864153,0.002,4502.5,4502.4,23.59229729]
[1759554864328,0.002,4502.5,4502.4,28.40529729]
[1759554865199,0.002,4502.5,4502.4,23.59229729]
[1759554865394,0.002,4502.5,4502.4,28.40529729]
[1759554865798,0.002,4502.5,4502.4,23.59229729]
[1759554866137,0.002,4502.5,4502.4,28.40529729]
[1759554866510,0.002,4502.5,4502.4,28.9451906]
[1759554866992,0.002,4502.5,4502.4,31.16622826]
[1759554868005,0.002,4502.5,4502.4,31.60942826]
[1759554868607,0.002,4502.5,4502.4,29.3883906]
[1759554868803,0.002,4502.5,4502.4,28.9451906]
[1759554869350,0.002,4502.5,4502.4,31.16622826]
[1759554870339,0.002,4502.5,4502.4,31.60942826]
[1759554872015,0.002,4502.5,4502.4,31.16622826]
[1759554875861,0.002,4502.5,4502.4,31.60942826]
[1759554877497,0.002,4503.0,4502.5,3.0336]
[1759554877780,0.002,4503.0,4502.7,2.22088409]
[1759554877998,0.002,4503.0,4502.9,2.5112]
[1759554878145,0.002,4503.0,4502.9,18.247119]
[1759554878345,0.002,4503.0,4502.9,23.060119]
[1759554878546,0.002,4503.0,4502.9,24.113323]
[1759554878782,0.002,4503.0,4502.9,22.260243]
[1759554879482,0.002,4503.0,4502.9,23.62791424]
[1759554879652,0.002,4503.0,4502.9,26.19577624]
[1759554880879,0.002,4503.0,4502.9,23.42591424]
[1759554881180,0.002,4503.0,4502.9,20.83370528]
[1759554881542,0.002,4503.0,4502.9,25.64770528]
[1759554881745,0.002,4503.0,4502.9,26.41960924]
[1759554882477,0.002,4503.0,4502.9,28.64040028]
[1759554882679,0.002,4503.0,4502.9,27.69795724]
[1759554882884,0.002,4503.0,4502.9,28.14115724]
[1759554883094,0.002,4503.0,4502.9,30.36194828]
[1759554883995,0.002,4503.2,4503.1,2.22069241]
[1759554884163,0.002,4503.2,4503.1,26.15398533]
[1759554884365,0.002,4503.2,4503.1,26.57497841]
[1759554884961,0.002,4503.2,4503.1,26.6870192]
[1759554885367,0.002,4503.2,4503.1,24.46632679]
[1759554885571,0.002,4503.2,4503.1,28.96463818]
[1759554886267,0.002,4503.2,4503.1,26.63190498]
[1759554886465,0.002,4503.2,4503.1,22.39085598]
[1759554886800,0.3378,4503.2,4503.1,13.09221198]
[1759554886980,0.3378,4503.2,4503.1,10.814593]
[1759554887175,0.002,4503.2,4503.1,10.814593]
[1759554887792,0.002,4503.2,4503.1,28.43877841]
[1759554887981,0.002,4503.2,4503.1,28.71248581]
[1759554888181,0.002,4503.2,4503.1,31.2562907]
[1759554888478,0.002,4503.2,4503.1,31.8898907]
[1759554888799,0.002,4503.5,4503.3,2.4]
[1759554889103,0.002,4503.5,4503.4,25.36220642]
[1759554889272,0.002,4503.5,4503.4,26.84107766]
[1759554889473,0.002,4503.5,4503.4,25.65714315]
[1759554890005,0.002,4503.5,4503.4,25.39095724]
[1759554890199,0.002,4503.5,4503.4,26.57447482]
[1759554890373,0.002,4503.5,4503.4,26.12984315]
[1759554891802,0.002,4503.5,4503.4,28.35038762]
[1759554892003,0.002,4503.5,4503.4,26.12984315]
[1759554892498,0.002,4503.5,4503.4,26.40355055]
[1759554892700,0.002,4503.5,4503.4,28.62409502]
[1759554892874,0.002,4503.5,4503.4,26.40355055]
[1759554893263,0.002,4503.5,4503.4,25.93085055]
[1759554894278,0.002,4503.5,4503.4,21.61345208]
[1759554894805,0.002,4503.5,4503.4,20.43073924]
[1759554894974,0.002,4503.5,4503.4,28.881604]
[1759554896069,0.002,4503.5,4503.4,23.866351]
[1759554896406,0.002,4503.5,4503.4,24.535275]
[1759554897204,0.002,4503.5,4503.4,17.83930124]
[1759554897405,0.002,4503.5,4503.4,20.135501]
[1759554898010,0.002,4503.5,4503.4,9.876518]
[1759554898214,0.002,4503.5,4503.4,23.248574]
[1759554898414,0.002,4503.5,4503.4,22.06592724]
[1759554898606,0.002,4503.5,4503.4,23.248574]
[1759554899218,0.002,4503.5,4503.4,23.058894]
[1759554899408,0.002,4503.5,4503.4,21.53698524]
[1759554899812,0.002,4503.5,4503.4,20.34017824]
[1759554900194,0.002,4503.5,4503.4,22.636825]
[1759554901128,0.002,4503.5,4503.4,26.448023]
[1759554901832,0.002,4503.5,4503.4,17.02720191]
[1759554902128,0.002,4503.5,4503.4,20.888254]
[1759554902298,0.002,4503.5,4503.4,17.99137024]
[1759554902500,0.002,4503.5,4503.4,11.809699]
[1759554902700,0.3378,4503.5,4503.4,14.209181]
[1759554903133,0.002,4503.5,4503.4,19.386377]
[1759554903499,0.002,4503.5,4503.4,17.828876]
[1759554903700,0.002,4503.5,4503.4,11.284504]
[1759554903902,0.002,4503.5,4503.4,10.881238]
[1759554904204,0.002,4503.5,4503.4,13.748757]
[1759554905104,0.002,4503.5,4503.4,20.480363]
[1759554905305,0.002,4503.5,4503.4,19.245833]
[1759554905512,0.002,4503.5,4503.4,18.580268]
[1759554906138,0.002,4503.5,4503.4,20.458849]
[1759554906339,0.002,4503.5,4503.4,18.9063]
[1759554906541,0.002,4503.5,4503.4,10.348427]
[1759554906744,0.002,4503.5,4503.4,10.104385]
[1759554907039,0.002,4503.5,4503.4,5.290385]
[1759554907238,0.002,4503.5,4503.4,7.797385]
[1759554907609,0.002,4503.5,4503.3,3.39964676]
[1759554907826,0.002,4503.5,4503.4,2.53020544]
[1759554908015,0.002,4503.5,4503.4,2.80391284]
[1759554908322,0.002,4503.5,4503.4,3.07009875]
[1759554909149,0.002,4503.5,4503.4,2.80391284]
[1759554909442,0.002,4503.5,4503.4,2.53020544]
[1759554909658,0.3378,4503.5,4503.4,2.508]
[1759554910441,0.002,4503.5,4503.1,0.001]
[1759554910655,0.3378,4503.5,4503.3,2.4]
[1759554910871,0.002,4503.5,4503.4,2.507]
[1759554911220,0.3378,4503.5,4503.4,2.507]
[1759554912560,0.3378,4503.5,4503.1,0.001]
[1759554912760,0.002,4503.5,4503.2,2.507]
[1759554912956,0.3358,4503.4,4503.2,2.507]
[1759554913364,0.002,4503.5,4503.1,0.001]
[1759554913530,0.3358,4503.3,4503.2,2.507]
[1759554914423,0.6736,4503.3,4503.2,2.507]
[1759554914930,0.6736,4503.3,4503.1,0.001]
[1759554915165,0.3358,4503.2,4503.1,0.001]
[1759554915328,0.3358,4503.2,4503.1,2.508]
[1759554915858,0.3358,4503.2,4503.1,0.001]
[1759554916058,0.3358,4503.2,4503.1,2.508]
[1759554917465,0.3358,4503.2,4503.1,0.001]
[1759554917640,2.66764309,4503.2,4503.1,0.001]
[1759554917834,2.66764309,4503.2,4503.1,2.508]
[1759554918038,3.19044253,4503.2,4503.1,2.508]
[1759554918460,3.19044253,4503.2,4503.1,0.001]
[1759554918663,3.19044253,4503.2,4503.1,2.508]
[1759554918863,0.96979944,4503.2,4503.1,2.508]
[1759554919029,0.447,4503.2,4503.1,2.508]
[1759554920566,0.1112,4503.2,4503.1,2.508]
[1759554920955,0.447,4503.2,4503.1,2.508]
[1759554921162,0.447,4503.2,4503.1,0.001]
[1759554921361,0.447,4503.2,4503.1,2.508]
[1759554921878,2.66764309,4503.2,4503.1,2.508]
[1759554922080,3.19043852,4503.2,4503.1,2.508]
[1759554922286,3.19043852,4503.2,4503.1,0.001]
[1759554922433,3.19043852,4503.2,4503.1,2.509]
[1759554922934,3.19043852,4503.2,4503.1,0.001]
[1759554923178,3.19043852,4503.2,4503.1,2.508]
[1759554923528,3.85692819,4503.2,4503.1,2.508]
[1759554924476,3.85692819,4503.2,4503.1,0.001]
[1759554924635,3.85692819,4503.2,4503.1,2.508]
[1759554925168,3.85692819,4503.2,4503.1,0.001]
[1759554925383,3.85692819,4503.2,4503.1,2.508]
[1759554926752,3.85692819,4503.2,4503.1,0.001]
[1759554926953,3.85692819,4503.2,4503.1,1.438]
[1759554927359,3.85692819,4503.2,4503.1,2.508]
[1759554927770,3.52112819,4503.2,4503.1,2.508]
[1759554928068,3.85692819,4503.2,4503.1,2.508]
[1759554929157,3.85692819,4503.2,4503.1,0.001]
[1759554929359,3.85692819,4503.2,4503.1,2.508]
[1759554930176,3.85692819,4503.2,4503.1,0.001]
[1759554930345,3.85892819,4503.2,4503.1,2.508]
[1759554931176,3.85892819,4503.2,4503.1,0.001]
[1759554931374,3.85892819,4503.2,4503.1,2.508]
[1759554932956,3.85892819,4503.2,4503.1,0.001]
[1759554933160,3.85892819,4503.2,4503.1,2.118]
[1759554934072,2.22054447,4503.4,4503.1,2.118]
[1759554934387,0.002,4503.5,4503.1,2.118]
[1759554934388,5.84890226,4503.3,4503.1,0.001]
[1759554934589,3.52083452,4503.3,4503.2,2.097]
[1759554934958,2.85419378,4503.3,4503.2,2.097]
[1759554935365,3.52083452,4503.3,4503.2,2.097]
[1759554935911,4.69800114,4503.3,4503.2,2.097]
[1759554936912,4.80920114,4503.3,4503.1,0.001]
[1759554937306,4.1425604,4503.3,4503.1,0.001]
[1759554939788,1.73731679,4503.2,4503.1,0.001]
[1759554940126,2.32550451,4503.2,4503.1,0.001]
[1759554942286,4.72550451,4503.2,4503.1,0.001]
[1759554942596,5.35910451,4503.2,4503.1,0.001]
[1759554945145,5.83700988,4503.2,4503.1,0.001]
[1759554945907,5.83701059,4503.2,4503.1,0.001]
[1759554946241,5.35910451,4503.2,4503.1,0.001]
[1759554946394,5.83705444,4503.2,4503.1,0.001]
[1759554949043,4.72550451,4503.2,4503.1,0.001]
[1759554949200,4.72550451,4503.2,4503.1,0.4457]
[1759554949400,4.72550451,4503.2,4503.1,0.001]
[1759554951203,4.72550451,4503.2,4503.1,0.4673]
[1759554951512,1.84851679,4503.2,4503.1,0.4673]
[1759554954606,2.33184309,4503.2,4503.1,0.4673]
[1759554956626,0.1112,4503.2,4503.1,0.4673]
[1759554956833,2.33184309,4503.2,4503.1,0.4673]
[1759554957032,0.1112,4503.2,4503.1,0.4673]
[1759554957640,0.1112,4503.2,4503.1,0.5785]
[1759554957840,0.1112,4503.2,4503.1,3.0845]
[1759554963430,2.33184309,4503.2,4503.1,3.0845]
[1759554963764,2.33184309,4503.2,4503.1,0.1122]
[1759554963948,2.33184309,4503.2,4503.1,2.217]
[1759554963949,2.5654274,4503.2,4503.1,2.217]
[1759554965958,2.5654274,4503.2,4503.1,0.001]
[1759554966163,2.5654274,4503.2,4503.1,2.311]
[1759554966364,2.5654274,4503.2,4503.1,0.001]
[1759554966520,2.5654274,4503.2,4503.1,1.485]
[1759554966927,2.5674274,4503.2,4503.1,1.485]
[1759554967463,2.5674274,4503.2,4503.1,2.507]
[1759554967630,2.5674274,4503.2,4503.1,0.001]
[1759554967963,2.5674274,4503.2,4503.1,1.924]
[1759554968677,2.5674274,4503.2,4503.1,0.001]
[1759554969080,2.5674274,4503.2,4503.1,1.481]
[1759554969936,2.5674274,4503.2,4503.1,2.506]
[1759554970136,2.5674274,4503.2,4503.1,0.001]
[1759554970368,2.5674274,4503.2,4503.1,1.564]
[1759554976449,3.9004274,4503.2,4503.1,1.564]
[1759554976648,2.5674274,4503.2,4503.1,2.506]
[1759554977368,2.5674274,4503.2,4503.1,0.001]
[1759554977569,2.5674274,4503.2,4503.1,2.506]
[1759554979052,2.5674274,4503.2,4503.1,0.001]
[1759554979474,3.23408591,4503.2,4503.1,0.001]
[1759554979827,2.5674274,4503.2,4503.1,0.001]
[1759554979956,3.23408591,4503.2,4503.1,0.001]
[1759554980152,2.5674274,4503.2,4503.1,0.4673]
[1759554986301,0.34678431,4503.2,4503.1,0.001]
[1759554986538,2.33384309,4503.2,4503.1,0.4439]
[1759554986904,0.1132,4503.2,4503.1,0.4439]
[1759554987506,2.33384309,4503.2,4503.1,0.4439]
[1759554987756,0.1132,4503.2,4503.1,0.4439]
[1759554988350,2.33384309,4503.2,4503.1,0.4439]
[1759554988507,2.33384309,4503.2,4503.1,0.001]
[1759554988707,2.78968227,4503.2,4503.1,0.001]
[1759554988908,2.78968227,4503.2,4503.1,2.506]
[1759554989224,2.78968227,4503.2,4503.1,0.001]
[1759554989427,2.78968227,4503.2,4503.1,1.012]
[1759554993549,2.78968227,4503.2,4503.1,0.001]
[1759554993847,2.78968227,4503.2,4503.1,1.554]
[1759554994763,2.78968227,4503.2,4503.1,2.069]
[1759554994967,5.07848227,4503.2,4503.1,0.001]
[1759554995114,5.55712152,4503.2,4503.1,0.001]
[1759554995314,6.22378744,4503.2,4503.1,0.001]
[1759554998412,3.15712152,4503.2,4503.1,0.4668]
[1759554998607,2.67848227,4503.2,4503.1,0.4668]
[1759554999147,0.48063925,4503.3,4503.1,0.4668]
[1759554999313,2.22064309,4503.2,4503.1,0.4668]
[1759554999514,2.22064309,4503.2,4503.1,0.001]
[1759555000115,2.22064309,4503.2,4503.1,2.505]
[1759555001830,2.22264309,4503.2,4503.1,2.505]
[1759555002136,2.78188672,4503.2,4503.1,2.505]
[1759555002758,2.78188672,4503.2,4503.1,0.001]
[1759555003056,3.92719189,4503.2,4503.1,0.001]
[1759555003232,3.44855264,4503.2,4503.1,0.001]
[1759555005060,3.55975264,4503.2,4503.1,0.001]
[1759555005563,3.55975264,4503.2,4502.7,0.001]
[1759555005564,2.22084036,4502.8,4502.7,0.001]
[1759555006068,2.33204036,4502.8,4502.7,0.001]
[1759555006226,2.22084036,4502.8,4502.7,0.4668]
[1759555006738,2.22084036,4502.8,4502.7,1.2578]
[1759555007558,2.22084036,4502.8,4502.7,2.9708]
[1759555008342,2.22084036,4502.8,4502.7,0.4668]
[1759555008650,2.22084036,4502.8,4502.7,2.6578]
[1759555009023,2.22084036,4502.8,4502.7,2.9708]
[1759555016075,2.33204036,4502.8,4502.7,2.9708]
[1759555018083,2.33204036,4502.8,4502.7,0.001]
[1759555018280,2.78732142,4502.8,4502.7,2.505]
[1759555018977,2.78732142,4502.8,4502.7,0.001]
[1759555019177,2.78732142,4502.8,4502.7,2.505]
[1759555019411,2.78732142,4502.8,4502.7,0.001]
[1759555019631,2.78732142,4502.8,4502.7,2.505]
[1759555021407,2.78732142,4502.8,4502.7,0.001]
[1759555021608,2.78732142,4502.8,4502.7,2.072]
[1759555021892,2.78732142,4502.8,4502.7,0.001]
[1759555022325,2.78732142,4502.8,4502.7,0.836]
[1759555024036,2.22108699,4502.3,4502.2,1e-08]
[1759555024260,2.22108699,4502.3,4502.2,0.01300001]
[1759555024544,2.33228699,4502.3,4502.2,0.01300001]
[1759555027954,2.33228699,4502.3,4502.2,1e-08]
[1759555028186,2.33228699,4502.3,4502.2,0.60100001]
[1759555028385,2.83548056,4502.3,4502.2,0.60100001]
[1759555029382,2.83548056,4502.3,4502.2,1e-08]
[1759555029579,2.72428056,4502.3,4502.2,1e-08]
[1759555029905,2.22108699,4502.3,4502.2,0.46560001]
[1759555031062,2.22097613,4502.6,4502.2,0.46560001]
[1759555031261,2.22108699,4502.3,4502.2,0.46560001]
[1759555033608,0.002,4503.1,4502.2,0.46560001]
[1759555033821,2.2210273,4502.5,4502.2,0.46560001]
[1759555034108,0.002,4503.1,4502.3,2.505]
[1759555034109,2.22103766,4502.4,4502.3,2.505]
[1759555034328,2.22103766,4502.4,4502.3,2.9706]
[1759555034908,2.22090941,4502.7,4502.3,2.9706]
[1759555035122,0.002,4503.1,4502.3,2.9706]
[1759555035123,0.002,4503.1,4502.3,2.505]
[1759555035276,2.22098413,4502.6,4502.3,2.505]
[1759555035477,0.002,4503.1,4502.3,2.505]
[1759555035710,0.002,4503.1,4502.4,0.4656]
[1759555036322,2.22098833,4502.5,4502.4,0.4656]
[1759555036628,0.002,4503.1,4502.4,0.76276]
[1759555036788,2.22085356,4502.8,4502.4,0.4656]
[1759555037629,2.22078748,4503.0,4502.4,0.4656]
[1759555037922,2.22080811,4502.9,4502.4,0.4656]
[1759555038817,0.002,4503.1,4502.4,0.4656]
[1759555038818,2.22270164,4503.1,4502.4,0.4656]
[1759555039329,0.002,4503.1,4502.4,0.4656]
[1759555039486,0.002,4503.1,4502.5,2.504]
[1759555039826,2.22095593,4502.6,4502.5,2.504]
[1759555040009,2.22095593,4502.6,4502.5,2.9696]
[1759555043453,0.1112,4502.8,4502.2,1e-08]
[1759555043744,2.22108699,4502.3,4502.2,1e-08]
[1759555044064,2.22108699,4502.3,4502.2,2.95430001]
[1759555046870,2.22108699,4502.3,4502.2,1e-08]
[1759555047164,2.67641537,4502.3,4502.2,2.50400001]
[1759555051666,2.67641537,4502.3,4502.2,1e-08]
[1759555051845,2.67641537,4502.3,4502.2,2.50400001]
[1759555053962,2.67641537,4502.3,4502.2,1e-08]
[1759555054165,2.67641537,4502.3,4502.2,1.85500001]
[1759555054339,2.67641537,4502.3,4502.2,1e-08]
[1759555054539,2.67641537,4502.3,4502.2,1.37300001]
[1759555055777,2.67641537,4502.3,4502.2,1e-08]
[1759555056481,2.67641537,4502.3,4502.2,1.16700001]
[1759555056942,2.78761537,4502.3,4502.2,1.16700001]
[1759555058066,5.18761537,4502.3,4502.2,1.16700001]
[1759555058272,5.66606847,4502.3,4502.2,1.16700001]
[1759555059278,5.66606847,4502.3,4502.2,1.64600001]
[1759555062295,5.18761537,4502.3,4502.2,1.64600001]
[1759555063158,5.66582242,4502.3,4502.2,1e-08]
[1759555063358,5.18761537,4502.3,4502.2,1e-08]
[1759555070529,5.18961537,4502.3,4502.2,1e-08]
[1759555071296,5.66782648,4502.3,4502.2,1e-08]
[1759555074601,5.66782648,4502.3,4502.2,2.50500001]
[1759555076529,5.66782648,4502.3,4502.2,1e-08]
[1759555076909,5.66782648,4502.3,4502.2,0.51300001]
[1759555077239,2.22113633,4502.2,4502.1,0.001]
[1759555077442,3.48822977,4502.2,4502.1,0.001]
[1759555078619,2.22133368,4501.8,4501.7,0.001]
[1759555079159,2.33253368,4501.8,4501.7,0.001]
[1759555079318,2.83573457,4501.8,4501.7,0.001]
[1759555079713,2.83573457,4501.8,4501.7,0.516]
[1759555080059,2.83573457,4501.8,4501.7,0.001]
[1759555083457,5.23573457,4501.8,4501.7,0.001]
[1759555083655,5.60274568,4501.8,4501.7,0.001]
[1759555085055,5.69167201,4501.8,4501.7,0.001]
[1759555085460,5.60274568,4501.8,4501.7,0.4426]
[1759555086931,6.93574568,4501.8,4501.7,0.4426]
[1759555087135,5.60274568,4501.8,4501.7,0.4426]
[1759555088022,5.60274568,4501.8,4501.7,0.001]
[1759555089661,3.20274568,4501.8,4501.7,0.001]
[1759555089967,2.22177786,4500.9,4499.4,0.45059279]
[1759555090199,2.22177786,4500.9,4499.3,2.309]
[1759555090410,2.22177786,4500.9,4499.4,0.08891744]
[1759555091069,2.22177786,4500.9,4500.8,2.506]
[1759555091282,2.22177786,4500.9,4500.8,0.001]
[1759555091670,2.22177786,4500.9,4500.8,1.678]
[1759555091883,2.22177786,4500.9,4500.8,2.1196]
[1759555092062,2.6661263,4500.9,4500.8,2.1196]
[1759555092809,2.22177786,4500.9,4500.8,2.1196]
[1759555093486,2.33297786,4500.9,4500.8,2.1196]
[1759555099706,2.33297786,4500.9,4500.8,0.4426]
[1759555099907,2.33297786,4500.9,4500.8,2.9476]
[1759555115189,2.33297786,4500.9,4500.8,2.506]
[1759555115389,2.7886463,4500.9,4500.8,2.506]
[1759555121413,2.7886463,4500.9,4500.8,0.001]
[1759555121616,2.7886463,4500.9,4500.8,2.506]
[1759555124728,2.7886463,4500.9,4500.8,0.001]
[1759555125026,2.7886463,4500.9,4500.8,2.506]
[1759555144486,2.7886463,4500.9,4500.8,2.9726]
[1759555145253,2.22177786,4500.9,4500.8,2.506]
[1759555145560,2.33297786,4500.9,4500.8,2.9726]
[1759555145763,0.1112,4500.9,4500.8,2.9726]
[1759555146001,0.1112,4500.9,4500.8,3.29733074]
[1759555147321,0.1112,4500.9,4500.8,2.9726]
[1759555147491,0.002,4501.1,4500.8,3.51246572]
[1759555147669,0.002,4501.1,4500.9,0.48881777]
[1759555147870,0.002,4501.1,4501.0,2.505]
[1759555148373,0.002,4501.1,4501.0,2.9716]
[1759555148774,4.192,4501.1,4501.0,2.9716]
[1759555152989,0.002,4501.1,4501.0,4.28214015]
[1759555153196,0.002,4501.1,4501.0,4.30435743]
[1759555153534,0.002,4501.1,4501.0,4.57806483]
[1759555153823,0.002,4501.1,4501.0,4.55584755]
[1759555154609,0.002,4501.1,4501.0,4.40088923]
[1759555155074,0.002,4501.1,4501.0,4.12718183]